{"text_format":"1","workbook":"xlsx","n_sheets":2,"sheets":["TABELA","DINÂMICA"],"not_rendered":{"charts":0,"images":0,"macros":1,"external_links":0,"defined_names":1,"comments":0,"pivot_tables":1},"unopened":[],"bounds":{"document_bytes":16777216,"sheet_cells":100000,"rows_first":2000,"rows_last":500,"rows_between":2000,"halvings":0,"cell_chars":16384,"cell_head_chars":4096},"cells_cut":0,"cells_raw":0,"read":"whole","date_system":"1900"}

{"sheet":"TABELA","index":0,"n_rows":11,"n_cols":12,"rows_kept":11,"cut":false,"hidden":false,"merged":[]}
["CATEGORIA","ATIVO","CORRETORA/BANCO","TIPO","QUANTIDADE","VALOR","TOTAL","TOTAL LÍQ.","DATA COM","PAGAMENTO","DIFERENÇA ANOS","ANO_PAGAMENTO"]
["Ações","ITSA4","XX","Dividendo",400,0.02,8,8,"2020-08-17","2021-08-26",{"$f":"IF(YEAR(Tabela1[[#This Row],[PAGAMENTO]])-YEAR(Tabela1[[#This Row],[DATA COM]])>0,\"SIM\",\"NÃO\")","v":"SIM"},{"$f":"YEAR(Tabela1[[#This Row],[PAGAMENTO]])","v":2021}]
["Ações","ITSA4","XX","JCP",400,0.02,8,8,"2020-08-31","2020-10-01",{"$f":"IF(YEAR(Tabela1[[#This Row],[PAGAMENTO]])-YEAR(Tabela1[[#This Row],[DATA COM]])>0,\"SIM\",\"NÃO\")","v":"NÃO"},{"$f":"YEAR(Tabela1[[#This Row],[PAGAMENTO]])","v":2020}]
["Ações","LREN3","XX","JCP",170,7.0823999999999998E-2,14.16,12.04,"2020-09-22","2021-05-07",{"$f":"IF(YEAR(Tabela1[[#This Row],[PAGAMENTO]])-YEAR(Tabela1[[#This Row],[DATA COM]])>0,\"SIM\",\"NÃO\")","v":"SIM"},{"$f":"YEAR(Tabela1[[#This Row],[PAGAMENTO]])","v":2021}]
["FIIs","HGLG11","XX","Rendimento",30,0.6,18,18,"2020-09-30","2022-10-15",{"$f":"IF(YEAR(Tabela1[[#This Row],[PAGAMENTO]])-YEAR(Tabela1[[#This Row],[DATA COM]])>0,\"SIM\",\"NÃO\")","v":"SIM"},{"$f":"YEAR(Tabela1[[#This Row],[PAGAMENTO]])","v":2022}]
["Ações","ITSA4","XX","JCP",200,1.315E-2,3.09,2.63,"2021-03-09","2021-08-26",{"$f":"IF(YEAR(Tabela1[[#This Row],[PAGAMENTO]])-YEAR(Tabela1[[#This Row],[DATA COM]])>0,\"SIM\",\"NÃO\")","v":"NÃO"},{"$f":"YEAR(Tabela1[[#This Row],[PAGAMENTO]])","v":2021}]
["Ações","LREN3","XX","JCP",192,6.2447999999999997E-2,14.11,11.99,"2021-03-18","2022-05-04",{"$f":"IF(YEAR(Tabela1[[#This Row],[PAGAMENTO]])-YEAR(Tabela1[[#This Row],[DATA COM]])>0,\"SIM\",\"NÃO\")","v":"SIM"},{"$f":"YEAR(Tabela1[[#This Row],[PAGAMENTO]])","v":2022}]
["FIIs","HGBS11","XX","Rendimento",20,0.4,8,8,"2022-04-30","2022-05-14",{"$f":"IF(YEAR(Tabela1[[#This Row],[PAGAMENTO]])-YEAR(Tabela1[[#This Row],[DATA COM]])>0,\"SIM\",\"NÃO\")","v":"NÃO"},{"$f":"YEAR(Tabela1[[#This Row],[PAGAMENTO]])","v":2022}]
["FIIs","VILG11","XX","Rendimento",47,0.5,23.5,23.5,"2021-04-30","2021-05-14",{"$f":"IF(YEAR(Tabela1[[#This Row],[PAGAMENTO]])-YEAR(Tabela1[[#This Row],[DATA COM]])>0,\"SIM\",\"NÃO\")","v":"NÃO"},{"$f":"YEAR(Tabela1[[#This Row],[PAGAMENTO]])","v":2021}]
["Ações","BRKM3","XX","Dividendo",30,1.6963330000000001,50.89,50.89,"2021-12-30","2023-05-02",{"$f":"IF(YEAR(Tabela1[[#This Row],[PAGAMENTO]])-YEAR(Tabela1[[#This Row],[DATA COM]])>0,\"SIM\",\"NÃO\")","v":"SIM"},{"$f":"YEAR(Tabela1[[#This Row],[PAGAMENTO]])","v":2023}]
["FIIs","HGRU11","XX","Rendimento",98,0.82,80.36,80.36,"2023-05-31","2023-06-14",{"$f":"IF(YEAR(Tabela1[[#This Row],[PAGAMENTO]])-YEAR(Tabela1[[#This Row],[DATA COM]])>0,\"SIM\",\"NÃO\")","v":"NÃO"},{"$f":"YEAR(Tabela1[[#This Row],[PAGAMENTO]])","v":2023}]

{"sheet":"DINÂMICA","index":1,"n_rows":16,"n_cols":7,"rows_kept":16,"cut":false,"hidden":false,"merged":[]}
[]
[]
["Soma de TOTAL LÍQ.","Rótulos de Coluna"]
["Rótulos de Linha","Dividendo","JCP","Rendimento","Total Geral"]
["BRKM3",50.89,null,null,50.89]
["HGBS11",null,null,8,8]
["HGLG11",null,null,18,18,null,"1- Preciso somar os DIVIDENDOS, JCP E RENDIMENTOS por ANO, mas subtraindo do valor, caso haja diferença entre o ano da DATA COM e ANO DE PAGAMENTO."]
["HGRU11",null,null,80.36,80.36]
["ITSA4",16,2.63,null,18.63]
["JSRE11",null,null,113.68,113.68]
["LREN3",null,24.03,null,24.03]
["VILG11",null,null,23.5,23.5,null,"SUGestão:"]
["XPML11",null,null,6.5,6.5,null,"1. Adicionar uma nova coluna chamada \"Diferença de Anos\" que calcule a diferença entre as colunas \"Ano\" e \"Ano_Pagamento\"."]
["Total Geral",66.89,26.66,250.04000000000002,343.59000000000003,null,"2. Usar a função somase para verificar se a diferença é maior que zero."]
[null,null,null,null,null,null,"3. Se a diferença for maior que zero, subtrair o valor da coluna \"Tipo\" da linha."]
[null,null,null,null,null,null,"4. Se a diferença for menor ou igual a zero, somar o valor da coluna \"Tipo\" da linha."]